bitfinex/quotes_BTCUSD_20241206
["timestamp","ask_amount","ask_price","bid_price","bid_amount"]
[1733447282173,0.023,97106.0,97080.0,0.04730393]
[1733447282596,0.11465512,97106.0,97080.0,0.04730393]
[1733447282939,0.023,97100.0,97080.0,0.04730393]
[1733447283377,0.13748268,97105.0,97070.0,0.01267278]
[1733447283378,0.09165512,97105.0,97095.0,0.04730393]
[1733447283650,0.09165512,97107.0,97095.0,0.04730393]
[1733447283836,0.09165512,97108.0,97095.0,0.04730393]
[1733447284033,0.13806677,97111.0,97095.0,0.04730393]
[1733447284034,0.09165512,97109.0,97095.0,0.04730393]
[1733447284274,0.00058409,97111.0,97095.0,0.04730393]
[1733447284275,0.0008653,97110.0,97095.0,0.04730393]
[1733447284499,0.0008653,97110.0,97091.0,0.18143154]
[1733447284500,0.0008653,97110.0,97096.0,0.04730393]
[1733447284684,0.0238653,97110.0,97085.0,0.04730393]
[1733447285211,0.11552042,97110.0,97085.0,0.04730393]
[1733447285415,0.0238653,97110.0,97085.0,0.04730393]
[1733447285631,0.023,97105.0,97085.0,0.04730393]
[1733447286507,0.11465512,97105.0,97085.0,0.04730393]
[1733447286934,0.11465512,97105.0,97088.0,0.04730393]
[1733447287145,0.023,97105.0,97088.0,0.04730393]
[1733447287347,0.0238653,97110.0,97088.0,0.04730393]
[1733447288385,0.0238653,97110.0,97101.0,0.04730393]
[1733447288386,0.0008653,97110.0,97101.0,0.04730393]
[1733447288606,0.0008653,97110.0,97106.0,0.04730393]
[1733447291160,0.07579531,97132.0,97109.0,0.04730393]
[1733447291365,0.01082344,97133.0,97109.0,0.04730393]
[1733447291366,0.14855388,97133.0,97109.0,0.04730393]
[1733447291565,0.003024,97129.0,97110.0,0.04730393]
[1733447293073,0.13773044,97139.0,97125.0,0.04730393]
[1733447293278,0.13773044,97148.0,97125.0,0.04730393]
[1733447293525,0.01091055,97149.0,97125.0,0.04730393]
[1733447293732,0.13773044,97155.0,97125.0,0.04730393]
[1733447293945,0.10503154,97154.0,97125.0,0.04730393]
[1733447294356,0.14869056,97157.0,97133.0,0.04730393]
[1733447294578,0.01087623,97157.0,97133.0,0.04730393]
[1733447294802,0.13881433,97159.0,97133.0,0.04730393]
[1733447295008,0.01163175,97159.0,97133.0,0.04730393]
[1733447295639,0.023,97158.0,97133.0,0.04730393]
[1733447295853,0.16080477,97158.0,97133.0,0.04730393]
[1733447296288,0.023,97158.0,97133.0,0.04730393]
[1733447296743,0.023,97152.0,97125.0,0.04730393]
[1733447299368,0.023,97152.0,97122.0,0.04730393]
[1733447299584,0.16080477,97152.0,97122.0,0.10503154]
[1733447300062,0.13780477,97147.0,97122.0,0.10503154]
[1733447300272,0.13780477,97146.0,97122.0,0.10503154]
[1733447300510,0.13780477,97146.0,97119.0,0.12720393]
[1733447300511,0.10503154,97145.0,97119.0,0.0799]
[1733447300717,0.13780477,97143.0,97119.0,0.0799]
[1733447300918,0.023,97140.0,97119.0,0.0799]
[1733447301370,0.09189463,97137.0,97119.0,0.0799]
[1733447302369,0.09189463,97136.0,97119.0,0.0799]
[1733447303181,0.09189463,97135.0,97119.0,0.0799]
[1733447304015,0.09189463,97132.0,97119.0,0.0799]
[1733447304423,0.09189463,97133.0,97119.0,0.0799]
[1733447304619,0.13780477,97136.0,97119.0,0.0799]
[1733447304620,0.09189463,97134.0,97119.0,0.0799]
[1733447305506,0.09189463,97133.0,97119.0,0.0799]
[1733447305706,0.09189463,97134.0,97119.0,0.0799]
[1733447306093,0.09189463,97133.0,97119.0,0.0799]
[1733447306549,0.09189463,97134.0,97119.0,0.0799]
[1733447306956,0.09189463,97133.0,97119.0,0.0799]
[1733447307087,0.09189463,97133.0,97110.0,0.09580393]
[1733447307286,0.09189463,97131.0,97111.0,0.04730393]
[1733447307490,0.13780477,97134.0,97107.0,0.0764]
[1733447307491,0.09189463,97129.0,97110.0,0.04730393]
[1733447307916,0.09189463,97127.0,97110.0,0.04730393]
[1733447308141,0.023,97126.0,97110.0,0.001729]
[1733447308364,0.09189463,97120.0,97110.0,0.001729]
[1733447308627,0.22967461,97127.0,97110.0,0.001729]
[1733447308628,0.023,97113.0,97110.0,0.001729]
[1733447308832,0.023,97111.0,97110.0,0.00058409]
[1733447309079,0.12803154,97111.0,97110.0,0.00058409]
[1733447309294,0.12803154,97111.0,97078.0,0.04730393]
[1733447309500,0.09201498,97097.0,97078.0,0.04730393]
[1733447309928,0.10503154,97110.0,97078.0,0.04730393]
[1733447309929,0.09201498,97096.0,97078.0,0.04730393]
[1733447310609,0.09201498,97097.0,97078.0,0.04730393]
[1733447311034,0.09201498,97096.0,97078.0,0.04730393]
[1733447311443,0.09201498,97098.0,97078.0,0.04730393]
[1733447311675,0.09201498,97096.0,97078.0,0.04730393]
[1733447312450,0.09201498,97095.0,97078.0,0.04730393]
[1733447312681,0.13802248,97098.0,97078.0,0.04730393]
[1733447312682,0.09201498,97096.0,97078.0,0.04730393]
[1733447312885,0.09201498,97097.0,97078.0,0.04730393]
[1733447313561,0.09201498,97096.0,97078.0,0.04730393]
[1733447313773,0.023,97094.0,97065.0,0.00103004]
[1733447314007,0.023,97092.0,97063.0,0.04730393]
[1733447314206,0.23003746,97101.0,97063.0,0.04730393]
[1733447314207,0.6977357,97091.0,97063.0,0.04730393]
[1733447314409,0.46769824,97091.0,97063.0,0.04730393]
[1733447315319,0.46769824,97091.0,97058.0,0.0778]
[1733447315559,0.09200184,97075.0,97050.0,0.0017278]
[1733447315770,0.16100276,97071.0,97050.0,0.0017278]
[1733447315982,0.46769824,97071.0,97050.0,0.0017278]
[1733447316186,0.26604463,97071.0,97050.0,0.0017278]
[1733447316387,0.12803154,97071.0,97050.0,0.0017278]
[1733447317021,0.12861527,97071.0,97050.0,0.0017278]
[1733447317225,0.35857595,97071.0,97050.0,0.0017278]
[1733447317673,0.34013863,97071.0,97055.0,0.0778]
[1733447317905,0.00058373,97071.0,97056.0,0.04730393]
[1733447318078,0.00058373,97071.0,97050.0,0.0017278]
[1733447318596,0.11551943,97071.0,97050.0,0.0017278]
[1733447318801,0.00058373,97071.0,97057.0,0.04730393]
[1733447319112,0.00058373,97071.0,97066.0,0.0778]
[1733447320501,0.00058373,97071.0,97070.0,0.10675974]
[1733447320706,0.00058373,97071.0,97070.0,0.15406367]
[1733447320907,0.00058373,97071.0,97070.0,0.04903213]
[1733447321346,0.00058373,97071.0,97070.0,0.0017282]
[1733447324926,0.00058373,97071.0,97070.0,0.04903213]
[1733447327617,0.00058373,97071.0,97070.0,0.0017282]
[1733447328520,0.00058373,97071.0,97052.0,0.04730393]
[1733447329939,0.00058373,97071.0,97054.0,0.04730393]
[1733447331106,0.00058373,97071.0,97050.0,0.0017278]
[1733447331917,0.023,97069.0,97050.0,0.0017278]
[1733447332131,0.023,97067.0,97050.0,0.0017278]
[1733447332338,0.023,97065.0,97050.0,0.0017278]
[1733447332555,0.10503154,97064.0,97050.0,0.0017278]
[1733447332770,0.023,97063.0,97050.0,0.0017278]
[1733447332970,0.00058373,97071.0,97061.0,0.0822]
[1733447333183,0.00058373,97071.0,97057.0,0.04730393]
[1733447333811,0.00058373,97071.0,97050.0,0.00275808]
[1733447333812,0.00058373,97071.0,97050.0,0.0017278]
[1733447334216,0.023,97069.0,97050.0,0.0017278]
[1733447334471,0.023,97067.0,97050.0,0.0017278]
[1733447334709,0.023,97065.0,97050.0,0.0017278]
[1733447334915,0.023,97063.0,97050.0,0.0017278]
[1733447335142,0.10503154,97063.0,97050.0,0.0017278]
[1733447335342,0.023,97062.0,97050.0,0.0017278]
[1733447338107,0.13876387,97062.0,97050.0,0.0017278]
[1733447339219,0.10503154,97061.0,97050.0,0.0017278]
[1733447339440,0.023,97060.0,97050.0,0.0017278]
[1733447339658,0.10503154,97059.0,97050.0,0.0017278]
[1733447339880,0.023,97058.0,97050.0,0.0017278]
[1733447340095,0.023,97056.0,97050.0,0.0017278]
[1733447340309,0.023,97054.0,97050.0,0.0017278]
[1733447340559,0.10503154,97053.0,97050.0,0.0017278]
[1733447340989,0.023,97052.0,97050.0,0.0017278]
[1733447341223,0.10503154,97051.0,97050.0,0.0017278]
[1733447341457,0.12803154,97051.0,97050.0,0.0017278]
[1733447343470,0.12803154,97051.0,97030.0,0.0017314]
[1733447343471,0.023,97050.0,97030.0,0.0017314]
[1733447343908,0.11472454,97050.0,97030.0,0.0017314]
[1733447344137,0.023,97048.0,97030.0,0.0017314]
[1733447344659,0.09172454,97048.0,97030.0,0.0017314]
[1733447344880,0.09172454,97042.0,97030.0,0.0017314]
[1733447345108,0.09172454,97036.0,97030.0,0.0017314]
[1733447345321,0.023,97035.0,97030.0,0.0017314]
[1733447345967,0.09179713,97037.0,97030.0,0.0017314]
[1733447346186,0.18344909,97042.0,97030.0,0.0017314]
[1733447346187,0.09179713,97042.0,97030.0,0.0017314]
[1733447346400,0.00058337,97042.0,97036.0,0.04730393]
[1733447348869,0.00058337,97042.0,97039.0,0.04730393]
[1733447349107,0.00058337,97042.0,97041.0,0.04730393]
[1733447349319,0.00058337,97042.0,97041.0,0.15233547]
[1733447349550,0.00058337,97042.0,97041.0,0.15336588]
[1733447349787,0.00058337,97042.0,97041.0,0.23516588]
[1733447350022,0.00058337,97042.0,97041.0,0.23413547]
[1733447350264,0.00058337,97042.0,97041.0,0.28243547]
[1733447350917,0.13775486,97082.0,97041.0,0.28243547]
[1733447350918,0.09183657,97082.0,97077.0,0.04730393]
[1733447351155,0.09183657,97087.0,97077.0,0.04747924]
[1733447351396,0.09183657,97087.0,97081.0,0.04730393]
[1733447351611,0.0008649,97090.0,97089.0,0.04730393]
[1733447351832,0.0008649,97090.0,97089.0,0.15233547]
[1733447352322,0.0008649,97090.0,97078.0,0.00102982]
[1733447352323,0.0008649,97090.0,97085.0,0.04730393]
[1733447352526,0.0008649,97090.0,97089.0,0.04730393]
[1733447352746,0.1387978,97090.0,97089.0,0.04730393]
[1733447352969,0.09281926,97090.0,97089.0,0.04730393]
[1733447353429,0.1387978,97090.0,97079.0,0.04730393]
[1733447353646,0.09199506,97086.0,97079.0,0.04730393]
[1733447353858,0.18391053,97086.0,97084.0,0.04730393]
[1733447354080,0.09199492,97089.0,97086.0,0.04730393]
[1733447354301,0.0008649,97090.0,97089.0,0.04730393]
[1733447354515,0.0008649,97090.0,97089.0,0.15336533]
[1733447355374,0.0008649,97090.0,97089.0,0.23516533]
[1733447355591,0.0008649,97090.0,97089.0,0.23413547]
[1733447359561,0.0008649,97090.0,97089.0,0.23316158]
[1733447360410,0.0008649,97090.0,97089.0,0.15136158]
[1733447360629,0.0008649,97090.0,97089.0,0.10405765]
[1733447360857,0.0008649,97090.0,97077.0,0.07527531]
[1733447360858,0.0008649,97090.0,97083.0,0.04730393]
[1733447361067,0.0008649,97090.0,97089.0,0.04730393]
[1733447361505,0.0008649,97090.0,97089.0,0.15233547]
[1733447362615,0.0008649,97090.0,97089.0,0.1627331]
[1733447365244,0.0008649,97090.0,97089.0,0.11542917]
[1733447367190,0.0008649,97090.0,97077.0,0.00017531]
[1733447367401,0.0008649,97090.0,97078.0,0.10503154]
[1733447367645,0.0008649,97090.0,97079.0,0.00102997]
[1733447367844,0.0008649,97090.0,97080.0,0.10503154]
[1733447368084,0.0008649,97090.0,97081.0,0.00102987]
[1733447368307,0.0008649,97090.0,97077.0,0.01078738]
[1733447368308,0.0008649,97090.0,97082.0,0.10606141]
[1733447369538,0.0008649,97090.0,97082.0,0.10503154]
[1733447369753,0.0008649,97090.0,97083.0,0.00102993]
[1733447369956,0.0008649,97090.0,97077.0,0.00017531]
[1733447370167,0.0008649,97090.0,97078.0,0.10503154]
[1733447370610,0.0008649,97090.0,97079.0,0.00103001]
[1733447370810,0.0008649,97090.0,97080.0,0.10503154]
[1733447371011,0.0008649,97090.0,97081.0,0.00102993]
[1733447371217,0.0008649,97090.0,97082.0,0.10606147]
[1733447373379,0.0008649,97090.0,97089.0,0.04730393]
[1733447373603,0.0008649,97090.0,97089.0,0.15336519]
[1733447378023,0.0008649,97090.0,97089.0,0.16388753]
[1733447379981,0.0008649,97090.0,97089.0,0.21285781]
[1733447380200,0.13786673,97137.0,97089.0,0.21285781]
[1733447380201,0.21986673,97152.0,97143.0,0.04730393]
[1733447380415,0.013548,97156.0,97120.0,0.10503154]
[1733447380628,0.013548,97156.0,97121.0,0.00102935]
[1733447380855,0.0458,97158.0,97124.0,0.10503154]
[1733447381070,0.0458,97158.0,97125.0,0.0010293]
[1733447381317,0.0458,97158.0,97126.0,0.10606084]
[1733447381567,0.04638409,97158.0,97126.0,0.10606084]
[1733447382190,0.00058409,97158.0,97139.0,0.10503154]
[1733447382453,0.00058409,97158.0,97145.0,0.10503154]
[1733447382676,0.00058409,97158.0,97146.0,0.0010291]
[1733447382907,0.00058409,97158.0,97147.0,0.10606064]
[1733447383598,0.00058409,97158.0,97149.0,0.10503154]
[1733447383814,0.00058409,97158.0,97157.0,0.10503154]
[1733447384071,0.00058409,97158.0,97157.0,0.23553154]
[1733447384499,0.00058409,97158.0,97157.0,0.24611637]
[1733447384729,0.00058409,97158.0,97157.0,0.27281794]
[1733447384940,0.00058409,97158.0,97157.0,0.24611637]
[1733447385438,0.00058409,97158.0,97157.0,0.27281794]
[1733447386081,0.001,97179.0,97162.0,0.05]
[1733447386306,0.001,97179.0,97174.0,0.10503154]
[1733447386523,0.00117513,97179.0,97175.0,0.0010288]
[1733447386726,0.00117513,97179.0,97178.0,0.10503154]
[1733447386897,0.00117513,97179.0,97178.0,0.23896029]
[1733447387158,0.00117513,97179.0,97178.0,0.23793154]
[1733447387331,0.00117513,97179.0,97178.0,0.31224147]
[1733447387564,0.00117513,97179.0,97178.0,0.32298803]
[1733447387974,0.00117513,97179.0,97178.0,0.2486781]
[1733447390372,0.00117513,97179.0,97178.0,0.1157781]
[1733447390638,0.00117513,97179.0,97178.0,0.10503154]
[1733447391274,0.00117513,97179.0,97178.0,0.10606028]
[1733447395634,0.00117513,97179.0,97178.0,0.10503154]
[1733447398318,0.00117513,97179.0,97178.0,0.15503154]
[1733447398677,0.001,97219.0,97178.0,0.15503154]
[1733447398678,0.001,97219.0,97202.0,0.05]
[1733447398909,0.001,97219.0,97203.0,0.10606007]
[1733447400211,0.001,97219.0,97208.0,0.10503154]
[1733447400410,0.001,97219.0,97208.0,0.15605993]
[1733447400875,0.001,97219.0,97218.0,0.05]
[1733447401082,0.001,97239.0,97238.0,0.05]
[1733447401305,0.001,97239.0,97238.0,0.15503154]
[1733447401527,0.00117559,97239.0,97238.0,0.15503154]
[1733447401763,0.00017559,97239.0,97238.0,0.15605969]
[1733447402393,0.00017559,97239.0,97238.0,0.15503154]
[1733447402642,0.00017559,97239.0,97238.0,0.10503154]
[1733447402850,0.00017559,97239.0,97238.0,0.10605969]
[1733447403072,0.00017559,97239.0,97238.0,0.10503154]
[1733447403294,0.00017559,97239.0,97229.0,0.01080779]
[1733447403506,0.00017559,97239.0,97207.0,0.0827]
[1733447403507,0.00017559,97239.0,97230.0,0.10503154]
[1733447403717,0.00017559,97239.0,97209.0,0.10503154]
[1733447404140,0.00017559,97239.0,97210.0,0.00102854]
[1733447404367,0.00017559,97239.0,97211.0,0.10503154]
[1733447404586,0.00017559,97239.0,97212.0,0.00102848]
[1733447404791,0.00017559,97239.0,97213.0,0.10606002]
[1733447406148,0.11592586,97239.0,97188.0,0.05]
[1733447406377,0.11592586,97239.0,97179.0,0.0827]
[1733447406378,0.12803154,97238.0,97191.0,0.05]
[1733447406581,0.12803154,97238.0,97192.0,0.10606017]
[1733447407335,0.00017559,97239.0,97192.0,0.10606017]
[1733447407567,0.00017559,97239.0,97205.0,0.15503154]
[1733447407807,0.00017559,97239.0,97206.0,0.00102841]
[1733447407993,0.00017559,97239.0,97209.0,0.05]
[1733447408340,0.00017559,97239.0,97210.0,0.10605995]
[1733447409614,0.00017559,97239.0,97211.0,0.00102846]
[1733447409852,0.00017559,97239.0,97193.0,0.10606]
[1733447410020,0.023,97237.0,97193.0,0.10503154]
[1733447410227,0.023,97235.0,97193.0,0.10503154]
[1733447410446,0.10503154,97234.0,97194.0,0.00102869]
[1733447410576,0.023,97233.0,97194.0,0.10606023]
[1733447410812,0.00017559,97239.0,97180.0,0.05]
[1733447410813,0.023,97231.0,97180.0,0.05]
[1733447411012,0.023,97231.0,97181.0,0.10606027]
[1733447411013,0.023,97228.0,97181.0,0.10606027]
[1733447411214,0.023,97226.0,97181.0,0.10606027]
[1733447411439,0.10606025,97225.0,97181.0,0.10606027]
[1733447411859,0.023,97224.0,97181.0,0.10606027]
[1733447412088,0.10606025,97223.0,97181.0,0.10606027]
[1733447414236,0.00313841,97229.0,97191.0,0.05]
[1733447414457,0.00017559,97239.0,97204.0,0.05]
[1733447414674,0.00017559,97239.0,97193.0,0.0827]
[1733447414675,0.00017559,97239.0,97208.0,0.05]
[1733447414896,0.00017559,97239.0,97209.0,0.10605995]
[1733447415329,0.00017559,97239.0,97219.0,0.05]
[1733447415537,0.00017559,97239.0,97220.0,0.10605982]
[1733447416541,0.00117559,97239.0,97220.0,0.10605982]
[1733447417089,0.00117559,97239.0,97220.0,0.15605982]
[1733447417658,0.00117559,97239.0,97222.0,0.05]
[1733447417857,0.00117559,97239.0,97235.0,0.10503154]
[1733447418105,0.00117559,97239.0,97236.0,0.00102816]
[1733447418305,0.00117559,97239.0,97237.0,0.1060597]
[1733447420230,0.00117559,97239.0,97238.0,0.17803154]
[1733447420441,0.0781,97294.0,97254.0,0.05]
[1733447420668,0.01077338,97292.0,97255.0,0.10605945]
[1733447420883,0.00202871,97289.0,97255.0,0.10503154]
[1733447421115,0.00202871,97289.0,97256.0,0.00102799]
[1733447421323,0.00102871,97278.0,97257.0,0.10605955]
[1733447422423,0.001,97289.0,97257.0,0.10605955]
[1733447422625,0.001,97279.0,97261.0,0.05]
[1733447422849,0.001,97279.0,97262.0,0.10605944]
[1733447425127,0.001,97279.0,97262.0,0.10503154]
[1733447425333,0.001,97279.0,97238.0,0.00017559]
[1733447425559,0.001,97279.0,97239.0,0.10503154]
[1733447425769,0.001,97279.0,97239.0,0.10605957]
[1733447425974,0.00202871,97279.0,97239.0,0.10605957]
[1733447426188,0.09133796,97276.0,97239.0,0.10605957]
[1733447426427,0.13903565,97279.0,97239.0,0.10605957]
[1733447426428,0.00102871,97268.0,97239.0,0.10605957]
[1733447426757,0.047,97266.0,97239.0,0.10503154]
[1733447426960,0.047,97266.0,97240.0,0.00102813]
[1733447427168,0.047,97266.0,97241.0,0.10503154]
[1733447427406,0.047,97266.0,97242.0,0.00102811]
[1733447427618,0.047,97266.0,97243.0,0.10605963]
[1733447427825,0.047,97266.0,97245.0,0.05]
[1733447428033,0.001,97279.0,97246.0,0.10605963]
[1733447428235,0.001,97279.0,97247.0,0.00102798]
[1733447428448,0.001,97279.0,97248.0,0.10503154]
[1733447428671,0.001,97279.0,97249.0,0.00102798]
[1733447428873,0.001,97279.0,97250.0,0.10503154]
[1733447429077,0.001,97279.0,97251.0,0.00102798]
[1733447429286,0.001,97279.0,97252.0,0.10503154]
[1733447429503,0.001,97279.0,97253.0,0.00102798]
[1733447429702,0.001,97279.0,97254.0,0.10503154]
[1733447429924,0.001,97279.0,97255.0,0.00102798]
[1733447430128,0.001,97279.0,97256.0,0.10503154]
[1733447430305,0.001,97279.0,97257.0,0.0010279]
[1733447430639,0.001,97279.0,97258.0,0.10605945]
[1733447432445,0.001,97279.0,97258.0,0.10503154]
[1733447432646,0.001,97279.0,97259.0,0.00102798]
[1733447432920,0.001,97279.0,97260.0,0.10503154]
[1733447433211,0.001,97279.0,97261.0,0.00102798]
[1733447433412,0.001,97279.0,97261.0,0.10605952]
[1733447434506,0.0832,97268.0,97238.0,0.00017559]
[1733447434690,0.0832,97268.0,97239.0,0.10503154]
[1733447434895,0.0456,97267.0,97239.0,0.10503154]
[1733447435888,0.0456,97267.0,97240.0,0.00102808]
[1733447436102,0.0456,97267.0,97241.0,0.10503154]
[1733447436353,0.0456,97267.0,97242.0,0.00102809]
[1733447436561,0.0456,97267.0,97243.0,0.10503154]
[1733447436808,0.00102871,97266.0,97243.0,0.10503154]
[1733447436979,0.00102871,97266.0,97244.0,0.00102808]
[1733447437158,0.00102871,97266.0,97244.0,0.10605962]
[1733447438071,0.00102871,97266.0,97238.0,0.01078231]
[1733447438254,0.00102871,97266.0,97239.0,0.10503154]
[1733447438454,0.00102871,97266.0,97239.0,0.10605972]
[1733447438762,0.00102871,97266.0,97240.0,0.0017266]
[1733447438909,0.00102871,97266.0,97241.0,0.10605972]
[1733447439539,0.0456,97267.0,97241.0,0.10605972]
[1733447440464,0.00102871,97266.0,97241.0,0.10605972]
[1733447443369,0.00315646,97275.0,97241.0,0.10605972]
[1733447443370,0.09154116,97277.0,97250.0,0.10503154]
[1733447443561,0.000864,97280.0,97251.0,0.15605947]
[1733447444005,0.000864,97280.0,97255.0,0.05]
[1733447444203,0.000864,97280.0,97256.0,0.10605943]
[1733447446414,0.000864,97280.0,97259.0,0.05]
[1733447446638,0.000864,97280.0,97260.0,0.10605937]
[1733447448216,0.000864,97280.0,97262.0,0.10503154]
[1733447448410,0.000864,97280.0,97260.0,0.00102783]
[1733447448411,0.000864,97280.0,97268.0,0.23393154]
[1733447448613,0.000864,97280.0,97278.0,0.073]
[1733447448830,0.000864,97280.0,97278.0,0.17905908]
[1733447449882,0.00158532,97279.0,97278.0,0.17905908]
[1733447450092,0.001,97299.0,97298.0,0.05]
[1733447450324,0.0005341,97299.0,97298.0,0.15503154]
[1733447450544,0.00070955,97299.0,97298.0,0.15503154]
[1733447451374,0.00070955,97299.0,97298.0,0.17803154]
[1733447451586,0.00070955,97299.0,97298.0,0.17905886]
[1733447451960,0.00070955,97299.0,97298.0,0.20267014]
[1733447452114,0.00070955,97299.0,97298.0,0.20164282]
[1733447453196,0.00070955,97299.0,97298.0,0.14123809]
[1733447453421,0.00070955,97299.0,97298.0,0.19226541]
[1733447454185,0.000733,97329.0,97318.0,0.05]
[1733447454420,0.000733,97329.0,97328.0,0.05]
[1733447454625,0.000733,97329.0,97328.0,0.17905857]
[1733447455025,0.000733,97329.0,97328.0,0.20341121]
[1733447455292,0.000733,97329.0,97328.0,0.20238418]
[1733447455503,0.000733,97329.0,97328.0,0.22716362]
[1733447455700,0.00090835,97329.0,97328.0,0.15503154]
[1733447455944,0.00090835,97329.0,97328.0,0.15605863]
[1733447456295,0.023,97394.0,97357.0,0.05]
[1733447456520,0.023,97392.0,97357.0,0.05]
[1733447456725,0.023,97389.0,97357.0,0.05]
[1733447456980,0.023,97387.0,97357.0,0.05]
[1733447457184,0.10503154,97386.0,97357.0,0.05]
[1733447457349,0.023,97385.0,97357.0,0.05]
[1733447457585,0.004103,97390.0,97357.0,0.05]
[1733447457586,0.023,97383.0,97357.0,0.05]
[1733447457792,0.10503154,97382.0,97357.0,0.05]
[1733447458265,0.01308767,97383.0,97372.0,0.05]
[1733447458462,0.0008633,97430.0,97377.0,0.05]
[1733447458663,0.01293095,97389.0,97377.0,0.05]
[1733447458812,0.013088,97412.0,97377.0,0.05]
[1733447459021,0.10503154,97411.0,97377.0,0.05]
[1733447459391,0.10503154,97411.0,97373.0,0.10102685]
[1733447459392,0.00305478,97390.0,97373.0,0.10102685]
[1733447459596,0.0796,97389.0,97373.0,0.1]
[1733447461180,0.0796,97401.0,97383.0,0.05]
[1733447461815,0.00305605,97396.0,97383.0,0.05]
[1733447463030,0.00305605,97396.0,97378.0,0.05102679]
[1733447463031,0.00305605,97396.0,97378.0,0.05]
[1733447463269,0.00305605,97396.0,97373.0,0.05]
[1733447463395,0.10503154,97395.0,97373.0,0.05]
[1733447463598,0.10503154,97395.0,97372.0,0.05]
[1733447463839,0.10503154,97395.0,97366.0,0.05]
[1733447464036,0.10503154,97395.0,97346.0,0.0789]
[1733447464037,0.0796,97401.0,97396.0,0.05]
[1733447464243,0.0631538,97410.0,97396.0,0.05]
[1733447467155,0.00307918,97409.0,97396.0,0.05]
[1733447467746,0.0005851,97411.0,97408.0,0.05]
[1733447468631,0.0005851,97411.0,97405.0,0.00102652]
[1733447468840,0.0005851,97411.0,97398.0,0.05]
[1733447469094,0.0005851,97411.0,97372.0,0.05]
[1733447469095,0.023,97409.0,97372.0,0.05]
[1733447469295,0.023,97409.0,97352.0,0.045]
[1733447469296,0.023,97407.0,97379.0,0.05]
[1733447469444,0.023,97407.0,97348.0,0.0789]
[1733447469445,0.023,97405.0,97369.0,0.05]
[1733447469658,0.023,97407.0,97369.0,0.05]
[1733447469659,0.0796,97403.0,97369.0,0.05]
[1733447469829,0.12803154,97402.0,97368.0,0.05]
[1733447470434,0.0497,97408.0,97349.0,0.01292494]
[1733447470435,0.0497,97408.0,97392.0,0.05]
[1733447470639,0.0005851,97411.0,97404.0,0.05]
[1733447472580,0.0005851,97411.0,97396.0,0.05]
[1733447472791,0.0005851,97411.0,97397.0,0.05]
[1733447473037,0.0005851,97411.0,97396.0,0.05]
[1733447473203,0.0005851,97411.0,97397.0,0.05]
[1733447473821,0.0005851,97411.0,97396.0,0.05]
[1733447474291,0.0005851,97411.0,97395.0,0.05]
[1733447474458,0.10503154,97410.0,97377.0,0.05]
[1733447474663,0.0497,97408.0,97367.0,0.05]
[1733447474839,0.0497,97408.0,97355.0,0.10503154]
[1733447474840,0.023,97405.0,97364.0,0.05]
[1733447475051,0.023,97403.0,97365.0,0.00102693]
[1733447475230,0.10503154,97392.0,97350.0,0.05]
[1733447475429,0.023,97391.0,97350.0,0.05]
[1733447475681,0.023,97389.0,97350.0,0.1]
[1733447475886,0.023,97387.0,97350.0,0.05]
[1733447476159,0.10503154,97386.0,97350.0,0.1]
[1733447476295,0.023,97385.0,97350.0,0.1]
[1733447476471,0.023,97383.0,97350.0,0.1]
[1733447476697,0.10503154,97382.0,97350.0,0.1]
[1733447476886,0.023,97381.0,97354.0,0.05]
[1733447477312,0.10503154,97380.0,97354.0,0.05]
[1733447477718,0.023,97379.0,97351.0,0.00102713]
[1733447478031,0.023,97375.0,97331.0,0.05]
[1733447478173,0.023,97375.0,97330.0,0.05]
[1733447478174,0.10503154,97372.0,97330.0,0.05]
[1733447478379,0.0981,97371.0,97330.0,0.05]
[1733447478573,0.10503154,97370.0,97330.0,0.05]
[1733447478777,0.023,97369.0,97330.0,0.05]
[1733447478981,0.023,97369.0,97320.0,0.10503154]
[1733447478982,0.023,97367.0,97328.0,0.05]
[1733447479171,0.023,97363.0,97325.0,0.05]
[1733447479372,0.023,97361.0,97328.0,0.05]
[1733447479582,0.023,97359.0,97328.0,0.05]
[1733447479799,0.023,97357.0,97328.0,0.05]
[1733447479978,0.023,97355.0,97328.0,0.05]
[1733447480204,0.023,97353.0,97314.0,0.05]
[1733447480413,0.023,97351.0,97314.0,0.05]
[1733447480673,0.023,97349.0,97314.0,0.05]
[1733447480879,0.1238,97364.0,97307.0,0.00102751]
[1733447480880,0.023,97347.0,97312.0,0.05]
[1733447481081,0.023,97345.0,97312.0,0.05]
[1733447481247,0.023,97343.0,97312.0,0.05]
[1733447481475,0.10503154,97342.0,97312.0,0.05]
[1733447481796,0.023,97341.0,97312.0,0.05]
[1733447482105,0.10503154,97340.0,97312.0,0.05017535]
[1733447485172,0.041047,97339.0,97318.0,0.05]
[1733447485379,0.10503154,97346.0,97319.0,0.05]
[1733447485767,0.14607554,97346.0,97319.0,0.05]
[1733447486903,0.14607554,97346.0,97322.0,0.05]
[1733447487117,0.08817882,97348.0,97322.0,0.05]
[1733447487336,0.10503154,97347.0,97324.0,0.05]
[1733447487553,0.041043,97346.0,97316.0,0.10503154]
[1733447487783,0.0496,97338.0,97312.0,0.00017535]
[1733447488027,0.10503154,97337.0,97312.0,0.00017535]
[1733447488464,0.10503154,97337.0,97312.0,0.05017535]
[1733447491365,0.06304324,97338.0,97315.0,0.05]
[1733447491586,0.06304324,97338.0,97317.0,0.05]
[1733447491809,0.06304324,97338.0,97322.0,0.05]
[1733447492058,0.01344324,97338.0,97322.0,0.05]
[1733447492260,0.0458,97356.0,97337.0,0.05]
[1733447492479,0.0765,97360.0,97337.0,0.05102726]
[1733447492690,0.0765,97360.0,97337.0,0.05]
[1733447493837,0.023,97358.0,97329.0,0.05]
[1733447494064,0.10503154,97357.0,97329.0,0.05]
[1733447494723,0.08990804,97360.0,97344.0,0.05]
[1733447494968,0.08990804,97360.0,97341.0,0.05]
[1733447495185,0.08990804,97360.0,97342.0,0.05]
[1733447495600,0.01340804,97360.0,97342.0,0.05]
[1733447496042,0.01340804,97360.0,97341.0,0.0010272]
[1733447496043,0.00017532,97360.0,97341.0,0.0010272]
[1733447496251,0.00017532,97360.0,97340.0,0.05]
[1733447496696,0.00017532,97360.0,97313.0,0.06017127]